Workbook

Sheet Sheet1
B12: Replacement Heifer Feed Prices and Requirements
B13: Feed Type | C13: Per Unit Prices ($) | D13: Unit | E13: Feed Usage By Months Fed
E14: 0 to 3 | F14: 3 to 12 | G14: 12 to 24
B15: Forage (Good Quality) | C15: 0.065 | D15: lb | E15: 50 | F15: 3000
B16: Forage (Fair Quality) | C16: =0.75*C15 -> 0.04875 | D16: lb | G16: 8400
B17: Corn Equivalent | C17: 3.2 | D17: Bu | E17: 0 | F17: 10 | G17: 0
B18: Soybean Meal | C18: 0.1645 | D18: lb | E18: 0 | F18: 50 | G18: 0
B19: Mineral Salt | C19: 0.25 | D19: lb | E19: 0 | F19: 40 | G19: 75
B20: Milk Replacer | C20: 1.35 | D20: lb | E20: 65
B21: Calf Starter | C21: 0.4 | D21: lb | E21: 350
B25: Replacement Heifer Feed Costs
B26: Feed Type | C26: Per Unit Prices ($) | D26: Unit | E26: Feed Costs By Months Fed
E27: 0 to 3 | F27: 3 to 12 | G27: 12 to 24 | H27: 0 to 24
B28: Forage (High Quality) | C28: =C15 -> 0.065 | D28: lb | E28: =E15*$C15 -> 3.25 | F28: =F15*$C15 -> 195 | G28: =G15*$C15 -> 0 | H28: =SUM(E28:G28) -> 198.25
B29: Forage (Good Quality) | C29: 0.04875 | D29: lb | G29: =G16*$C16 -> 409.5 | H29: =SUM(E29:G29) -> 409.5
B30: Corn Equivalent | C30: 3.2 | D30: Bu | E30: =E17*$C17 -> 0 | F30: 32 | G30: 0 | H30: =SUM(E30:G30) -> 32
B31: Soybean Meal | C31: 0.1645 | D31: lb | E31: 0 | F31: 8.225 | G31: 0 | H31: 8.225
B32: Mineral Salt | C32: 0.25 | D32: lb | E32: 0 | F32: 10 | G32: 18.75 | H32: 28.75
B33: Milk Replacer | C33: 1.35 | D33: lb | E33: 87.75 | F33: 0 | G33: 0 | H33: 87.75
B34: Calf Starter | C34: 0.4 | D34: lb | E34: 140 | F34: 0 | G34: 0 | H34: 140
B35: Total | E35: =SUM(E28:E34) -> 231 | F35: =SUM(F28:F34) -> 245.225 | G35: 428.25 | H35: =SUM(H28:H34) -> 904.475
B36: Average Daily Costs | E36: =E35/90 -> 2.566666667 | F36: =F35/270 -> 0.9082407407 | G36: =G35/360 -> 1.189583333 | H36: =H35/720 -> 1.256215278
